bitfinex/quotes_BTCUSD_20251214
["timestamp","ask_amount","ask_price","bid_price","bid_amount"]
[1765754147124,0.13146962,88193.0,88192.0,0.08484]
[1765754147335,0.01133941,88188.0,88185.0,0.03703]
[1765754147537,0.1123939,88186.0,88185.0,0.03703]
[1765754147940,0.1123939,88186.0,88185.0,0.15473]
[1765754148708,0.1123939,88186.0,88185.0,0.15573]
[1765754149144,0.01968859,88193.0,88190.0,0.01133915]
[1765754149346,0.01968859,88193.0,88192.0,0.04858]
[1765754149767,0.01968859,88193.0,88192.0,0.1177]
[1765754150664,0.02068859,88193.0,88192.0,0.1177]
[1765754151187,0.01907572,88193.0,88192.0,0.1177]
[1765754151932,0.00111572,88193.0,88192.0,0.1177]
[1765754156303,0.11350962,88193.0,88192.0,0.1177]
[1765754156512,0.23812897,88188.0,88176.0,0.04760095]
[1765754156724,0.1123939,88182.0,88180.0,0.03557]
[1765754156937,0.1123939,88182.0,88180.0,0.26237773]
[1765754157145,0.00161287,88188.0,88187.0,0.22679079]
[1765754157351,0.00011572,88193.0,88190.0,0.23812009]
[1765754157566,0.00011572,88193.0,88192.0,0.0809]
[1765754158176,0.11250962,88193.0,88192.0,0.15112]
[1765754158386,0.11250962,88193.0,88192.0,0.37789793]
[1765754159131,0.00011572,88193.0,88192.0,0.37789793]
[1765754160022,0.00111572,88193.0,88192.0,0.37789793]
[1765754160309,0.00011572,88193.0,88192.0,0.37789793]
[1765754160547,0.22709626,88224.0,88203.0,0.23808531]
[1765754160548,0.01133606,88214.0,88203.0,0.23808531]
[1765754160755,0.1123939,88199.0,88198.0,0.01133812]
[1765754161196,0.1123939,88199.0,88193.0,0.07022]
[1765754161197,0.11400677,88199.0,88193.0,0.07022]
[1765754161400,0.11400677,88199.0,88195.0,0.01133851]
[1765754161590,0.01173709,88206.0,88195.0,0.01133851]
[1765754161591,0.0004,88206.0,88205.0,0.22674451]
[1765754161799,0.0004,88206.0,88205.0,0.27207451]
[1765754161995,0.0004,88206.0,88205.0,0.34229451]
[1765754162860,0.0004,88206.0,88205.0,0.34329451]
[1765754163261,0.0004,88206.0,88205.0,0.34429451]
[1765754163674,0.0004,88206.0,88205.0,0.34729451]
[1765754165806,0.01796,88227.0,88223.0,0.22669825]
[1765754166083,0.0021287,88224.0,88223.0,0.0809]
[1765754166416,0.00051583,88224.0,88223.0,0.15112]
[1765754166955,0.00051583,88224.0,88223.0,0.15412]
[1765754167158,0.24459998,88246.0,88230.0,0.01133401]
[1765754167367,0.12372662,88240.0,88232.0,0.0809]
[1765754167769,0.1123939,88240.0,88232.0,0.15112]
[1765754168005,0.01796,88246.0,88232.0,0.15112]
[1765754168592,0.02426733,88255.0,88232.0,0.15112]
[1765754168783,0.0004,88261.0,88260.0,0.22660321]
[1765754168989,0.000786,88261.0,88260.0,0.37677321]
[1765754169621,0.000786,88261.0,88260.0,0.15017]
[1765754169791,0.000786,88261.0,88255.0,0.03557]
[1765754169792,0.01133041,88258.0,88255.0,0.03557]
[1765754170019,0.1123939,88256.0,88255.0,0.03557]
[1765754170372,0.1123939,88259.0,88258.0,0.01133041]
[1765754170571,0.00239887,88261.0,88258.0,0.01133041]
[1765754170572,0.11479277,88261.0,88260.0,0.04533]
[1765754170936,0.33900738,88256.0,88255.0,0.03557]
[1765754171386,0.22664173,88245.0,88236.0,0.07022]
[1765754171648,0.33903563,88245.0,88237.0,0.01133311]
[1765754172086,0.33903563,88245.0,88240.0,0.01133272]
[1765754172463,0.3406485,88245.0,88239.0,0.01133285]
[1765754172669,0.11400677,88245.0,88244.0,0.07995]
[1765754172880,0.11400677,88245.0,88244.0,0.15217]
[1765754173278,0.000786,88261.0,88255.0,0.22661605]
[1765754173617,0.000786,88261.0,88259.0,0.22660578]
[1765754173817,0.000786,88261.0,88260.0,0.04533]
[1765754173966,0.000786,88261.0,88260.0,0.11555]
[1765754174567,0.01133182,88247.0,88238.0,0.07022]
[1765754174785,0.1123939,88245.0,88238.0,0.07022]
[1765754175030,0.1123939,88245.0,88242.0,0.01133247]
[1765754175229,0.1123939,88245.0,88244.0,0.07995]
[1765754175431,0.1123939,88245.0,88244.0,0.15017]
[1765754175842,0.22664173,88245.0,88244.0,0.03462]
[1765754176260,0.1123939,88245.0,88244.0,0.03462]
[1765754176456,0.1123939,88245.0,88244.0,0.07995]
[1765754177120,0.1123939,88245.0,88244.0,0.08195]
[1765754177330,0.1123939,88245.0,88244.0,0.03662]
[1765754178167,0.00161287,88245.0,88244.0,0.002]
[1765754178370,0.11400677,88245.0,88244.0,0.002]
[1765754178575,0.81251443,88245.0,88244.0,0.002]
[1765754178800,0.75916611,88245.0,88244.0,0.002]
[1765754179978,0.22673166,88210.0,88209.0,0.03557]
[1765754180165,0.33912556,88210.0,88209.0,0.03557]
[1765754180363,0.2380634,88212.0,88209.0,0.15112]
[1765754180569,0.1123939,88210.0,88209.0,0.03557]
[1765754181261,0.1123939,88210.0,88209.0,0.03668583]
[1765754181463,0.1123939,88213.0,88212.0,0.01133632]
[1765754181671,0.1123939,88213.0,88212.0,0.05666632]
[1765754181856,0.1123939,88215.0,88212.0,0.12688632]
[1765754182063,0.01133568,88217.0,88214.0,0.04533]
[1765754182265,0.23803942,88221.0,88215.0,0.04533]
[1765754182485,0.33908604,88226.0,88215.0,0.04533]
[1765754182486,0.01133465,88225.0,88215.0,0.04533]
[1765754182665,0.1123939,88217.0,88215.0,0.11555]
[1765754183552,0.33966656,88216.0,88215.0,0.04533]
[1765754183798,0.01133632,88212.0,88209.0,0.03568583]
[1765754184043,0.01133632,88212.0,88209.0,0.00011583]
[1765754184044,0.06667,88210.0,88209.0,0.00011583]
[1765754184243,0.54596677,88210.0,88209.0,0.00011583]
[1765754185096,0.54596677,88210.0,88209.0,0.00211583]
[1765754185295,0.57019824,88210.0,88209.0,0.00211583]
[1765754185934,0.49560824,88210.0,88209.0,0.00211583]
[1765754186149,0.44745824,88210.0,88209.0,0.00211583]
[1765754186600,0.44745824,88210.0,88209.0,0.00011583]
[1765754186802,0.49478824,88210.0,88209.0,0.00011583]
[1765754187221,0.47055677,88210.0,88209.0,0.00011583]
[1765754187869,0.42322677,88210.0,88209.0,0.00011583]
[1765754189235,0.42522677,88210.0,88209.0,0.00011583]
[1765754189477,0.54622677,88210.0,88209.0,0.00011583]
[1765754189692,0.62047667,88210.0,88209.0,0.00011583]
[1765754190575,0.65925676,88210.0,88209.0,0.00011583]
[1765754190780,0.62999561,88210.0,88209.0,0.00011583]
[1765754190984,0.63399561,88210.0,88209.0,0.00011583]
[1765754191192,0.62899561,88210.0,88209.0,0.00011583]
[1765754191403,0.61847667,88210.0,88209.0,0.00011583]
[1765754191666,0.63347667,88210.0,88209.0,0.00111583]
[1765754192687,0.64347667,88210.0,88209.0,0.00211583]
[1765754195297,0.67752554,88210.0,88209.0,0.00211583]
[1765754195915,0.67752554,88210.0,88209.0,1e-08]
[1765754196124,0.23820119,88161.0,88158.0,0.1077]
[1765754196337,0.23820119,88161.0,88158.0,0.03702572]
[1765754196601,0.1417539,88159.0,88158.0,0.00011572]
[1765754196779,0.2092639,88159.0,88158.0,0.00011572]
[1765754196991,0.16908,88159.0,88158.0,0.00011572]
[1765754197196,0.22689628,88146.0,88144.0,0.01785272]
[1765754197390,0.1123939,88145.0,88144.0,0.01785272]
[1765754197597,0.1123939,88145.0,88144.0,0.06633272]
[1765754197824,0.1123939,88145.0,88144.0,0.13712272]
[1765754198781,0.0113452,88143.0,88140.0,0.03691]
[1765754198981,0.22690658,88142.0,88140.0,0.03691]
[1765754199187,0.22690658,88142.0,88127.0,0.03691]
[1765754199188,0.22692202,88136.0,88127.0,0.03691]
[1765754199539,0.38886592,88136.0,88135.0,0.00058567]
[1765754199743,0.40682592,88136.0,88135.0,0.00058567]
[1765754199927,0.35727592,88136.0,88135.0,0.00058567]
[1765754200575,0.35827592,88136.0,88135.0,0.00658567]
[1765754200936,0.48003592,88136.0,88135.0,0.00658567]
[1765754201162,0.48164879,88136.0,88135.0,0.00658567]
[1765754201397,0.35988879,88136.0,88135.0,0.00858567]
[1765754201772,0.35888879,88136.0,88135.0,0.05106567]
[1765754202178,0.35988879,88136.0,88135.0,0.05606567]
[1765754202396,0.001,88136.0,88135.0,0.05606567]
[1765754202536,0.01796,88136.0,88135.0,0.00258567]
[1765754202738,0.1313539,88136.0,88135.0,0.00958567]
[1765754202944,0.1313539,88136.0,88135.0,0.06006567]
[1765754203345,0.1313539,88136.0,88135.0,0.01158567]
[1765754206104,0.18251677,88136.0,88135.0,0.01158567]
[1765754206303,0.25472677,88136.0,88135.0,0.01158567]
[1765754206939,0.28175677,88136.0,88135.0,0.01158567]
[1765754207351,0.28175677,88136.0,88135.0,0.00958567]
[1765754207552,0.28175677,88136.0,88135.0,0.00058567]
[1765754207760,0.20854677,88136.0,88135.0,0.00358567]
[1765754207957,0.20954677,88136.0,88135.0,0.00658567]
[1765754208366,0.20954677,88136.0,88135.0,0.00358567]
[1765754208696,0.20854677,88136.0,88135.0,0.00358567]
[1765754208913,0.21554677,88136.0,88135.0,0.00158567]
[1765754209425,0.22154677,88136.0,88135.0,0.00258567]
[1765754210270,0.29375677,88136.0,88135.0,0.00258567]
[1765754213323,0.18136287,88136.0,88135.0,0.00258567]
[1765754213533,0.32189393,88136.0,88135.0,0.00258567]
[1765754213740,0.29375677,88136.0,88135.0,0.00258567]
[1765754214304,0.2880863,88136.0,88135.0,0.00258567]
[1765754214508,0.34377516,88136.0,88135.0,0.00258567]
[1765754214713,0.17199677,88136.0,88135.0,0.00258567]
[1765754215031,0.29100398,88136.0,88135.0,0.00258567]
[1765754215236,0.26672677,88136.0,88135.0,0.00258567]
[1765754217716,0.03257287,88136.0,88135.0,0.00258567]
[1765754217928,0.06071003,88136.0,88135.0,0.00258567]
[1765754218140,0.17310393,88136.0,88135.0,0.00258567]
[1765754218597,0.21720393,88136.0,88135.0,0.00258567]
[1765754218810,0.28391393,88136.0,88135.0,0.00258567]
[1765754219024,0.25577677,88136.0,88135.0,0.00258567]
[1765754220281,0.14496677,88136.0,88135.0,0.00258567]
[1765754220485,0.28391393,88136.0,88135.0,0.00258567]
[1765754220689,0.08723103,88136.0,88135.0,0.00258567]
[1765754220926,0.21346023,88136.0,88135.0,0.00258567]
[1765754221130,0.16936023,88136.0,88135.0,0.00258567]
[1765754221338,0.04313593,88136.0,88135.0,0.11753567]
[1765754221535,0.013,88136.0,88135.0,0.11753567]
[1765754222567,0.007,88136.0,88135.0,0.11653567]
[1765754222753,0.01134442,88149.0,88146.0,0.01134481]
[1765754222978,0.01134442,88149.0,88148.0,0.03588]
[1765754223191,0.1123939,88149.0,88148.0,0.08156]
[1765754223713,0.1237391,88143.0,88142.0,0.03588]
[1765754223918,0.1237391,88143.0,88135.0,0.00658567]
[1765754223919,0.01134545,88141.0,88135.0,0.00658567]
[1765754224200,0.1822039,88136.0,88135.0,0.00658567]
[1765754224320,0.32329138,88136.0,88135.0,0.00058567]
[1765754224539,0.30572739,88136.0,88135.0,0.00058567]
[1765754225380,0.33008418,88136.0,88135.0,0.00058567]
[1765754226455,0.33108418,88136.0,88135.0,0.01258567]
[1765754226658,0.33209617,88136.0,88135.0,0.01258567]
[1765754226873,0.40041904,88136.0,88135.0,0.01258567]
[1765754227112,0.33270904,88136.0,88135.0,0.00658567]
[1765754227318,0.37405724,88136.0,88135.0,0.01158567]
[1765754228408,0.40041904,88136.0,88135.0,0.01158567]
[1765754228823,0.45043743,88136.0,88135.0,0.01158567]
[1765754229366,0.45043743,88136.0,88135.0,0.00658567]
[1765754229567,0.45043743,88136.0,88107.0,0.08061983]
[1765754229568,0.1123939,88112.0,88107.0,0.08061983]
[1765754229799,0.13675069,88112.0,88111.0,0.03702594]
[1765754230196,0.19143343,88112.0,88111.0,0.00011594]
[1765754230805,0.19243343,88112.0,88111.0,0.00711594]
[1765754231144,0.14833343,88112.0,88111.0,0.00711594]
[1765754231344,0.14833343,88112.0,88111.0,0.05279594]
[1765754231545,0.19243343,88112.0,88111.0,0.00711594]
[1765754231744,0.14833343,88112.0,88111.0,0.00711594]
[1765754231957,0.14733343,88112.0,88111.0,0.00011594]
[1765754232195,0.14833343,88112.0,88111.0,0.00611594]
[1765754232407,0.14933343,88112.0,88111.0,0.01111594]
[1765754232557,0.14833343,88112.0,88111.0,0.00511594]
[1765754232755,0.03693953,88112.0,88111.0,0.00911594]
[1765754232956,0.13875069,88112.0,88111.0,0.00911594]
[1765754233160,0.14933343,88112.0,88111.0,0.00911594]
[1765754233949,0.26014343,88112.0,88111.0,0.00911594]
[1765754234365,0.23578664,88112.0,88111.0,0.00911594]
[1765754234613,0.19343343,88112.0,88111.0,0.00911594]
[1765754234794,0.16907664,88112.0,88111.0,0.00911594]
[1765754234991,0.19343343,88112.0,88111.0,0.00911594]
[1765754235354,0.1584939,88112.0,88111.0,0.00911594]
[1765754235760,0.1143939,88112.0,88111.0,0.00911594]
[1765754236782,0.002,88112.0,88111.0,0.12406594]
[1765754236986,0.002,88112.0,88111.0,0.15994594]
[1765754237415,0.002,88112.0,88111.0,0.00911594]
[1765754237624,0.1764539,88112.0,88111.0,0.00911594]
[1765754237837,0.25373647,88112.0,88111.0,0.00911594]
[1765754237987,0.30858512,88112.0,88111.0,0.00911594]
[1765754238200,0.25373647,88112.0,88111.0,0.00911594]
[1765754238643,0.28417564,88112.0,88111.0,0.00911594]
[1765754239241,0.25373647,88112.0,88111.0,0.00911594]
[1765754239444,0.25273647,88112.0,88111.0,0.00511594]
[1765754239629,0.25973647,88112.0,88111.0,0.00111594]
[1765754240479,0.26973647,88112.0,88111.0,0.00211594]
[1765754241186,0.2591639,88112.0,88111.0,0.00211594]
[1765754243856,0.59988229,88112.0,88111.0,0.00211594]
[1765754244076,0.61044288,88112.0,88111.0,0.00211594]
[1765754244842,0.61044042,88112.0,88111.0,0.00211594]
[1765754245269,0.59988229,88112.0,88111.0,0.00211594]
[1765754245481,0.4651939,88112.0,88111.0,0.00211594]
[1765754245692,0.1483539,88112.0,88111.0,0.00211594]
[1765754245897,0.06409716,88112.0,88111.0,0.00211594]
[1765754246102,0.22059106,88112.0,88111.0,0.00211594]
[1765754247978,0.20263106,88112.0,88111.0,0.00211594]
[1765754248230,0.28256106,88112.0,88111.0,0.00211594]
[1765754248369,0.1924539,88112.0,88111.0,0.00211594]
[1765754248572,0.21957653,88112.0,88111.0,0.00211594]
[1765754250903,0.73277254,88112.0,88111.0,0.00211594]
[1765754251139,0.77090019,88112.0,88111.0,0.00211594]
[1765754251351,0.6299534,88112.0,88111.0,0.00211594]
[1765754251572,0.60567703,88112.0,88111.0,0.00211594]
[1765754252254,0.59514229,88112.0,88111.0,0.00211594]
[1765754252469,0.60567878,88112.0,88111.0,0.00211594]
[1765754252876,0.83266261,88112.0,88111.0,0.00211594]
[1765754253081,0.85693898,88112.0,88111.0,0.00211594]
[1765754253291,0.88737815,88112.0,88111.0,0.00211594]
[1765754254963,0.84640249,88112.0,88111.0,0.00211594]
[1765754255824,0.53774249,88112.0,88111.0,0.00211594]
[1765754256034,0.41943773,88112.0,88111.0,0.00211594]
[1765754256247,0.37533773,88112.0,88111.0,0.00211594]
[1765754256457,0.70644773,88112.0,88111.0,0.00211594]
[1765754256668,0.77293773,88112.0,88111.0,0.00211594]
[1765754257281,0.797258,88112.0,88111.0,0.00211594]
[1765754257482,0.84727639,88112.0,88111.0,0.00211594]
[1765754257694,0.84727662,88112.0,88111.0,0.00211594]
[1765754257905,0.82295612,88112.0,88111.0,0.00211594]
[1765754258045,0.84727381,88112.0,88111.0,0.00211594]
[1765754259530,0.85783402,88112.0,88111.0,0.00211594]
[1765754259882,0.33944989,88084.0,88083.0,0.00859263]
[1765754260081,0.33944989,88084.0,88083.0,0.00870851]
[1765754260082,0.39781989,88084.0,88083.0,0.00870851]
[1765754261031,0.1313539,88084.0,88083.0,0.01370851]
[1765754261234,0.01896,88084.0,88083.0,0.12480851]
[1765754261438,0.01996,88084.0,88083.0,0.12780851]
[1765754261653,0.2392539,88084.0,88083.0,0.01670851]
[1765754261791,0.1727639,88084.0,88083.0,0.01670851]
[1765754261986,0.01996,88084.0,88083.0,0.01670851]
[1765754262278,0.01996,88084.0,88083.0,0.12780851]
[1765754263976,0.002,88084.0,88083.0,0.12780851]
[1765754266476,0.001,88084.0,88083.0,0.12280851]
[1765754266870,0.002,88084.0,88083.0,0.12980851]
[1765754267894,0.001,88084.0,88083.0,0.12680851]
[1765754268099,0.003,88084.0,88083.0,0.12680851]
[1765754268362,0.003,88084.0,88083.0,0.2391185]
[1765754270481,0.1123939,88106.0,88104.0,0.01135022]
[1765754270975,0.1123939,88106.0,88105.0,0.14411]
[1765754271477,0.01796,88107.0,88106.0,0.22699929]
[1765754271624,0.01796,88107.0,88105.0,0.14411]
[1765754271824,0.013,88106.0,88105.0,0.07699]
[1765754272024,0.006,88106.0,88105.0,0.07699]
[1765754272290,0.01796,88107.0,88105.0,0.3039904]
[1765754272524,0.007,88106.0,88105.0,0.07799]
[1765754272670,0.1193939,88106.0,88105.0,0.07799]
[1765754272873,0.007,88106.0,88105.0,0.14511]
[1765754273296,0.007,88106.0,88105.0,0.14611]
[1765754274012,0.02496,88107.0,88106.0,0.22699929]
[1765754274269,0.007,88107.0,88106.0,0.33809929]
[1765754274472,0.014,88107.0,88106.0,0.33809929]
[1765754274679,0.01134906,88113.0,88110.0,0.01134944]
[1765754275000,0.22698641,88111.0,88107.0,0.06712]
[1765754275225,0.1123939,88106.0,88105.0,0.28136128]
[1765754275439,0.1123939,88106.0,88105.0,0.03801]
[1765754275815,0.1123939,88106.0,88105.0,0.03312588]
[1765754276625,0.1133939,88106.0,88105.0,0.03812588]
[1765754277215,0.44163606,88106.0,88105.0,0.00511588]
[1765754277448,0.58585568,88106.0,88105.0,0.00511588]
[1765754277602,0.49165445,88106.0,88105.0,0.00511588]
[1765754277798,0.49265445,88106.0,88105.0,0.01011588]
[1765754278503,0.49165445,88106.0,88105.0,0.00011588]
[1765754278870,0.49865445,88106.0,88105.0,0.00111588]
[1765754279015,0.50765445,88106.0,88105.0,0.00211588]
[1765754281959,0.47757632,88106.0,88105.0,0.00211588]
[1765754284900,0.50959632,88106.0,88105.0,0.00211588]
[1765754285478,0.80029632,88106.0,88105.0,0.00211588]
[1765754285785,0.82463065,88106.0,88105.0,0.00211588]
[1765754288379,0.84263065,88106.0,88105.0,0.00211588]
[1765754290493,0.81061065,88106.0,88105.0,0.00211588]
[1765754291096,0.38946828,88084.0,88077.0,0.0002]
[1765754291298,0.8525786,88084.0,88077.0,0.0002]
[1765754291504,0.9107486,88084.0,88077.0,0.0002]
[1765754293733,0.69560989,88084.0,88077.0,0.0002]
[1765754293935,0.70060989,88084.0,88083.0,0.00959263]
[1765754294121,0.75877989,88084.0,88083.0,0.00959263]
[1765754294463,0.74777989,88084.0,88083.0,0.00859263]
[1765754294660,0.79779828,88084.0,88083.0,0.00859263]
[1765754294865,0.80379828,88084.0,88083.0,0.00959263]
[1765754296427,0.80079828,88084.0,88083.0,0.00859263]
[1765754296660,0.79779828,88084.0,88083.0,0.00859263]
[1765754296871,0.80279828,88084.0,88083.0,0.00959263]
[1765754297068,0.80579828,88084.0,88083.0,0.00959263]
[1765754297269,0.79779828,88084.0,88083.0,0.00859263]
[1765754297683,0.80779828,88084.0,88083.0,0.00959263]
[1765754297881,0.80379828,88084.0,88083.0,0.00959263]
[1765754298081,0.79779828,88084.0,88083.0,0.00859263]
[1765754298319,0.80279828,88084.0,88083.0,0.00859263]
[1765754298503,0.80979828,88084.0,88083.0,0.00959263]
[1765754299192,0.67940438,88084.0,88083.0,0.00959263]
[1765754299407,0.75162828,88084.0,88083.0,0.00959263]
[1765754299626,0.80979828,88084.0,88083.0,0.00959263]
[1765754300044,0.75162828,88084.0,88083.0,0.00959263]
[1765754301350,0.80979828,88084.0,88083.0,0.00959263]
[1765754302997,0.69740438,88084.0,88083.0,0.00959263]
[1765754303170,0.80979828,88084.0,88083.0,0.00959263]
[1765754305263,0.83412966,88084.0,88083.0,0.00959263]
[1765754305894,0.63923438,88084.0,88083.0,0.00959263]
[1765754306169,0.80979828,88084.0,88083.0,0.00959263]
[1765754306411,0.83414813,88084.0,88083.0,0.00959263]
[1765754315278,0.84550428,88084.0,88083.0,0.00959263]
[1765754315483,0.87591269,88084.0,88083.0,0.00959263]
[1765754315694,0.84550428,88084.0,88083.0,0.00959263]
[1765754316746,0.87591269,88084.0,88083.0,0.00959263]
[1765754317350,0.88650264,88084.0,88083.0,0.00959263]
[1765754318642,0.86455654,88084.0,88083.0,0.00959263]
[1765754319280,0.87514877,88084.0,88083.0,0.00959263]
[1765754319707,0.83414813,88084.0,88083.0,0.00959263]
[1765754320341,0.86455654,88084.0,88083.0,0.00959263]
[1765754321168,0.87515153,88084.0,88083.0,0.00959263]
[1765754322203,0.28140584,88084.0,88083.0,0.00959263]
[1765754322416,0.36944989,88084.0,88083.0,0.00959263]
[1765754322623,0.66014989,88084.0,88083.0,0.00959263]
[1765754322810,0.69908989,88084.0,88083.0,0.00959263]
[1765754323011,0.69408989,88084.0,88083.0,0.00959263]
[1765754323430,0.69708989,88084.0,88083.0,0.00959263]
[1765754323643,0.77908974,88084.0,88083.0,0.00959263]
[1765754324236,0.77208974,88084.0,88083.0,0.00859263]
[1765754324435,0.77708974,88084.0,88083.0,0.00959263]
[1765754326573,0.75273989,88084.0,88083.0,0.00959263]
[1765754326778,0.54375599,88084.0,88083.0,0.00959263]
[1765754327116,0.65614989,88084.0,88083.0,0.00959263]
[1765754327752,0.71477299,88084.0,88083.0,0.00959263]
[1765754327941,0.82716689,88084.0,88083.0,0.00959263]
[1765754328923,0.6805585,88084.0,88083.0,0.00959263]
[1765754329137,0.65614989,88084.0,88083.0,0.00959263]
[1765754329317,0.68054912,88084.0,88083.0,0.00959263]
[1765754329516,0.69508989,88084.0,88083.0,0.00959263]
[1765754330087,0.54375599,88084.0,88083.0,0.00959263]
[1765754330291,0.69508989,88084.0,88083.0,0.00959263]
[1765754330530,0.77713613,88084.0,88083.0,0.00959263]
[1765754330821,0.69508989,88084.0,88083.0,0.00959263]
[1765754330975,0.65614989,88084.0,88083.0,0.00959263]
[1765754332034,0.54375599,88084.0,88083.0,0.00959263]
[1765754333010,0.65614989,88084.0,88083.0,0.00959263]
[1765754333441,0.75273989,88084.0,88083.0,0.00959263]
[1765754334638,0.77712958,88084.0,88083.0,0.00959263]
[1765754337950,0.82714797,88084.0,88083.0,0.00959263]
[1765754341250,0.71475407,88084.0,88083.0,0.00959263]
[1765754341454,0.76949797,88084.0,88083.0,0.00959263]
[1765754341746,0.82219797,88084.0,88083.0,0.00959263]
[1765754342105,0.68053958,88084.0,88083.0,0.00959263]
[1765754342305,0.65614989,88084.0,88083.0,0.00959263]
[1765754343532,0.25305599,88084.0,88083.0,0.04559263]
[1765754343741,0.36544989,88084.0,88083.0,0.00959263]
[1765754347311,0.34289599,88084.0,88083.0,0.00959263]
[1765754347525,0.45528989,88084.0,88083.0,0.00959263]
[1765754348234,0.79600828,88084.0,88083.0,0.00959263]
[1765754348439,0.83179532,88084.0,88083.0,0.00959263]
[1765754348653,0.84239873,88084.0,88083.0,0.00959263]
[1765754350526,0.87293872,88084.0,88083.0,0.00959263]
[1765754351160,0.83179532,88084.0,88083.0,0.00959263]
[1765754351838,0.81379532,88084.0,88083.0,0.00959263]
[1765754352062,0.77909532,88084.0,88083.0,0.00959263]
[1765754352542,0.76774111,88084.0,88083.0,0.00959263]
[1765754352744,0.82044111,88084.0,88083.0,0.00959263]
[1765754353691,0.16282673,88084.0,88083.0,0.04559263]
[1765754353895,0.1383939,88084.0,88083.0,0.00959263]
[1765754354105,0.1755339,88084.0,88083.0,0.00959263]
[1765754354275,0.2282339,88084.0,88083.0,0.00959263]
[1765754355348,0.1383939,88084.0,88083.0,0.04559263]
[1765754355550,0.1383939,88084.0,88083.0,0.10304263]
[1765754355551,0.026,88084.0,88083.0,0.10304263]
[1765754356365,0.021,88084.0,88083.0,0.10204263]
[1765754356814,0.018,88084.0,88083.0,0.10204263]
[1765754357056,0.02,88084.0,88083.0,0.10204263]
[1765754357614,0.021,88084.0,88083.0,0.10304263]
[1765754358212,0.02,88084.0,88083.0,0.10204263]
[1765754358425,0.021,88084.0,88083.0,0.11104263]
[1765754359424,0.1333939,88084.0,88083.0,0.05359263]
[1765754359643,0.1333939,88084.0,88083.0,0.11104263]
[1765754364284,0.021,88084.0,88083.0,0.33810119]
[1765754365103,0.021,88084.0,88083.0,0.05359263]
[1765754365316,0.1333939,88084.0,88083.0,0.01759263]
[1765754365513,0.33789599,88084.0,88083.0,0.01759263]
[1765754365767,0.1705339,88084.0,88083.0,0.01759263]
[1765754365961,0.021,88084.0,88083.0,0.01759263]
[1765754366246,0.16072348,88084.0,88083.0,0.01759263]
[1765754366452,0.021,88084.0,88083.0,0.10145263]
[1765754368396,0.021,88084.0,88083.0,0.01759263]
[1765754370087,0.021,88084.0,88083.0,0.24465119]
[1765754370288,0.021,88084.0,88083.0,0.27795119]
[1765754370486,0.1333939,88084.0,88083.0,0.32756119]
[1765754372358,0.1328939,88084.0,88083.0,0.32756119]
[1765754373342,0.0205,88084.0,88083.0,0.32756119]
[1765754373952,0.1328939,88084.0,88083.0,0.32756119]
[1765754375208,0.1328939,88084.0,88083.0,0.24465119]
[1765754375415,0.1328939,88084.0,88083.0,0.32756119]
[1765754376914,0.0205,88084.0,88083.0,0.32756119]
[1765754377742,0.003,88084.0,88083.0,0.32756119]
[1765754385382,0.1153939,88084.0,88083.0,0.05089263]
[1765754385540,0.1153939,88084.0,88083.0,0.01759263]
[1765754386565,0.1153939,88084.0,88083.0,0.10050263]
[1765754386872,0.003,88084.0,88083.0,0.10050263]
[1765754395220,0.003,88084.0,88083.0,0.21281262]
[1765754395943,0.001,88084.0,88083.0,0.21281262]
[1765754396194,0.003,88084.0,88083.0,0.21281262]
[1765754396521,0.002,88084.0,88083.0,0.20381262]
[1765754396745,0.002,88084.0,88083.0,0.09150263]
[1765754396953,0.003,88084.0,88083.0,0.09950263]
[1765754401579,0.003,88084.0,88083.0,0.21181262]
[1765754401791,0.003,88084.0,88083.0,0.10942029]
[1765754401998,0.003,88084.0,88083.0,0.22173028]
[1765754402189,0.003,88084.0,88083.0,0.23290554]
[1765754402400,0.003,88084.0,88083.0,0.21181262]
[1765754402815,0.01796,88104.0,88083.0,0.21181262]
[1765754403030,0.03407965,88110.0,88109.0,0.22699156]
[1765754403245,0.03419531,88110.0,88109.0,0.30925156]
[1765754403461,0.00011566,88110.0,88109.0,0.42156155]
[1765754403878,0.00011566,88110.0,88109.0,0.30925156]
[1765754405708,0.00111566,88110.0,88109.0,0.31325156]
[1765754405908,0.00211566,88110.0,88109.0,0.32025156]
[1765754406135,0.00111566,88110.0,88109.0,0.31625156]
[1765754406337,0.00111566,88110.0,88109.0,0.31925156]
[1765754415358,0.00111566,88110.0,88109.0,0.09226]
[1765754421775,0.00111566,88110.0,88109.0,0.01]
[1765754421959,0.11350956,88110.0,88109.0,0.01]
[1765754422358,0.11250956,88110.0,88109.0,0.003]
[1765754422656,0.1123939,88108.0,88107.0,0.01134983]
[1765754422866,0.1123939,88108.0,88107.0,0.04815]
[1765754423067,0.1123939,88108.0,88027.0,0.05675903]
[1765754423068,0.01134996,88106.0,88097.0,0.01135112]
[1765754423264,0.01135073,88100.0,88097.0,0.01135112]
[1765754423477,0.12374438,88102.0,88099.0,0.01135086]
[1765754423705,0.12374438,88102.0,88099.0,0.27247798]
[1765754423909,0.1123939,88102.0,88099.0,0.32062798]
[1765754424113,0.1123939,88102.0,88100.0,0.04815]
[1765754424316,0.1123939,88102.0,88098.0,0.03630099]
[1765754424317,0.35075403,88102.0,88098.0,0.03630099]
[1765754424502,0.22703279,88093.0,88089.0,0.06205215]
[1765754424707,0.01135163,88093.0,88089.0,0.01135215]
[1765754425151,0.01135176,88092.0,88089.0,0.01135215]
[1765754425366,0.23838746,88092.0,88088.0,0.03630228]
[1765754425575,0.23838983,88091.0,88088.0,0.02495]
[1765754425804,0.23838983,88091.0,88089.0,0.001]
[1765754426176,0.01135189,88091.0,88089.0,0.007]
[1765754426915,0.01235163,88093.0,88090.0,0.01135202]
[1765754427323,0.01796,88094.0,88091.0,0.04834]
[1765754427520,0.02931151,88094.0,88091.0,0.05969189]
[1765754428084,0.22703279,88093.0,88091.0,0.04834]
[1765754428310,0.01135176,88092.0,88090.0,0.005]
[1765754428953,0.01135176,88092.0,88089.0,0.04834]
[1765754429148,0.01135176,88092.0,88091.0,0.005]
[1765754429702,0.12374566,88092.0,88091.0,0.005]
[1765754429913,0.20030566,88092.0,88091.0,0.005]
[1765754430320,0.33944989,88084.0,88077.0,0.0002]
[1765754430615,0.36877989,88084.0,88077.0,0.0002]
[1765754430859,0.41556989,88084.0,88077.0,0.0002]
[1765754432026,0.41756989,88084.0,88083.0,0.01359263]
[1765754433296,0.41656989,88084.0,88083.0,0.00859263]
[1765754433502,0.41556989,88084.0,88083.0,0.00859263]
[1765754433758,0.41656989,88084.0,88083.0,0.01259263]
[1765754433943,0.41856989,88084.0,88083.0,0.01259263]
[1765754434143,0.41756989,88084.0,88083.0,0.00859263]
[1765754434324,0.41756989,88084.0,88083.0,0.01159263]
[1765754434325,0.43552989,88084.0,88083.0,0.01159263]